Cogmind - Beta 17.1 @@@ ROGUE MODE // 2026.08.31 @ 16:51:00 Player: LandRaider Result: Destroyed by O2-X4O(R) with Subdweller Machine Gun Performance ------------- Evolutions (0) 0 Regions Visited (3) 600 Robots Destroyed (31) 155 Value Destroyed (728) 728 Prototype IDs (2) 40 Alien Tech Used (0) 0 Bonus (0) 0 TOTAL SCORE: 1523 Bonus ------- None Cogmind --------- Core Integrity 0/250 Matter 300/300 Energy 100/100 System Corruption 1% Temperature Cool (0) Movement Core (250) Ox4 Location -10/Subcaves Parts ------- > --- POWER (1) -------- (None) > --- PROPULSION (2) --- (None) > --- UTILITY (2) ------ Medium Storage Unit Seismic Detector (fused) > --- WEAPON (2) ------- Assault Rifle > --- INVENTORY (10) --- Subdweller Power Source Aluminum Leg Subdweller Monowheel Improved Heat Sink Large Battery (200) Subdweller Optics ECM Suite Subdweller Machine Gun Grenade Launcher Mining Laser Peak State ------------ > --- POWER ------------ Light Nuclear Core > --- PROPULSION ------- Light Treads Light Treads > --- UTILITY ---------- Medium Storage Unit Seismic Detector > --- WEAPON ----------- Assault Rifle Light Assault Rifle > --- INVENTORY -------- Ion Engine Ion Engine Light Treads Aluminum Leg Aluminum Leg Large Battery Visual Processing Unit EM Pulse Gun Light Assault Rifle Mining Laser [Rating: 10] Favorites ----------- Power Light Nuclear Core Engine Light Ion Engine Power Core Light Nuclear Core Propulsion Light Treads Treads Light Treads Leg Aluminum Leg Utility Seismic Detector Device Seismic Detector Storage Medium Storage Unit Weapon Assault Rifle Ballistic Gun Assault Rifle Special Weapon Mining Laser Build | -11 -10 -10 -10 ------- Run | Yrd Mat Min Sub Slots Evolved . | . . . . Power . | . . . . Propulsion . | . . . . Utility . | . . . . Weapon . | . . . . Parts Attached 18 | 7 10 1 . Power 4 | 1 3 . . Engine 3 | 1 2 . . Core 1 | . 1 . . Reactor . | . . . . Propulsion 6 | 2 3 1 . Treads 5 | 2 2 1 . Leg 1 | . 1 . . Wheel . | . . . . Hover . | . . . . Flight . | . . . . Utility 3 | 2 1 . . Device 1 | 1 . . . Storage 2 | 1 1 . . Processor . | . . . . Hackware . | . . . . Protection . | . . . . Artifact . | . . . . Weapon 5 | 2 3 . . Energy Gun . | . . . . Energy Cannon . | . . . . Ballistic Gun 4 | 2 2 . . Ballistic Cannon . | . . . . Launcher . | . . . . Special Weapon 1 | . 1 . . Impact Weapon . | . . . . Slashing Weapon . | . . . . Piercing Weapon . | . . . . Special Melee Weapon . | . . . . Unidentified Prototypes . | . . . . Parts Lost 7 | . 2 1 4 Power 2 | . 1 . 1 Propulsion 4 | . 1 1 2 Utility . | . . . . Weapon 1 | . . . 1 Highest Loss Streak 4 | . 1 1 4 To Critical Strikes . | . . . . Average Backups 9 | 3 8 10 10 Power 1 | . 1 1 1 Propulsion 2 | 2 3 2 2 Utility 2 | . 1 4 4 Weapon 2 | . 2 3 3 Tool/Special . | . . . . Unused Backups 14 | . 5 . 9 Power 1 | . . . 1 Propulsion 5 | . 3 . 2 Utility 5 | . 1 . 4 Weapon 3 | . 1 . 2 Tool/Special . | . . . . Average Slot Usage (%) 98 | . 98 98 82 Engine 3 | . 6 . . Core 10 | . 7 14 5 Treads 26 | . 26 26 19 Device 13 | . 13 14 14 Storage 14 | . 14 14 14 Ballistic Gun 26 | . 25 28 28 Special Weapon 1 | . 2 . . Peak Build Rating 10 | 7 10 10 10 Average Rating 8 | 3 8 9 6 On Entrance 6 | . 7 10 10 Avg Prop Armor Cover (%) 12 | . 12 . . Naked Turns . | . . . . Heaviest Build 20 | 11 20 20 20 Greatest Support 40 | 40 40 40 40 Greatest Overweight (x) 4 | . 1 . 4 Average Overweight (x) . | . . . 1 Largest Inventory Capacity 10 | 8 10 10 10 Average Capacity 9 | 6 9 10 10 Most Carried 10 | 6 10 10 10 Average Carried 9 | 3 8 10 10 Final Capacity 10 | 8 10 10 10 Final Carried 10 | 6 10 10 10 Class Distribution -------------------- 73% | Scavenger-Mutant 26% | Mutant Dominant Class ---------------- Scavenger-Mutant | -10/Materials Scavenger-Mutant | -10/Mines Mutant | -10/Subcaves Resources | -11 -10 -10 -10 ----------- Run | Yrd Mat Min Sub Matter Collected 906 | 283 436 135 52 Remotely . | . . . . Salvage Created 1140 | 96 755 236 53 Parts 67 | 6 48 12 1 Haulers Intercepted 2 | . 2 . . Recyclers Shooed 3 | . 1 2 . Parts Field Recycled . | . . . . Retrieved Matter . | . . . . Parts Self-Destructed . | . . . . Prevented . | . . . . Parts Restored . | . . . . Kills | -11 -10 -10 -10 ------- Run | Yrd Mat Min Sub Combat Hostiles Destroyed 22 | . 16 5 1 Guns 22 | . 16 5 1 Classes Destroyed 9 | 2 5 1 1 Worker 1 | . . 1 . Tunneler 1 | 1 . . . Hauler 2 | . 2 . . Recycler 1 | 1 . . . Mechanic 1 | . 1 . . Watcher 3 | . 3 . . Swarmer 6 | . 3 3 . Grunt 15 | . 13 2 . Subdweller 1 | . . . 1 Best Kill Streak 6 | 2 6 3 1 Combat Bots Only 6 | . 6 3 1 Max Kills in Single Turn 1 | 1 1 1 1 Gunslinging . | . . . . Exploded . | . . . . Melee . | . . . . Uniques/NPCs Destroyed . | . . . . Combat | -11 -10 -10 -10 -------- Run | Yrd Mat Min Sub Hostile Shots Fired 138 | . 79 41 18 Missed 32 | . 18 10 4 Hits 106 | . 61 31 14 Projectile 106 | . 61 31 14 Damage Taken 1266 | . 687 296 283 Core 265 | . 106 78 81 Absorbed by Shields . | . . . . Regen/Repaired (Parts) 16 | . 16 . . Core Remaining (%) 100 | 100 . . . Volleys Fired 130 | 13 78 29 10 Largest 2 | 1 2 2 2 Hottest 100 | 20 100 40 40 Shots Fired 225 | 13 154 40 18 Gun 223 | 13 152 40 18 Cannon . | . . . . Launcher . | . . . . Special 2 | . 2 . . Kinetic 223 | 13 152 40 18 Thermal 2 | . 2 . . Explosive . | . . . . Electromagnetic . | . . . . Robot Hit Streak 11 | 6 9 6 11 Robot Miss Streak 4 | 4 4 2 1 Penetration Max . | . . . . Secondary Targets 4 | . 4 . . Max Gunslinging Chain 1 | . 1 . . Shots Hit Robots 157 | 8 108 25 16 Core Hits 69 | 5 49 12 3 Critical Kills . | . . . . Critical Parts Destroyed . | . . . . Critical Strikes . | . . . . Melee Attacks . | . . . . Impact . | . . . . Slashing . | . . . . Piercing . | . . . . Sneak Attacks . | . . . . Combat Hostiles . | . . . . Follow-up Attacks . | . . . . Damage Inflicted 1609 | 70 1008 338 193 Guns 1609 | 70 1008 338 193 Cannons . | . . . . Explosions . | . . . . Melee . | . . . . Ramming . | . . . . Kinetic 1609 | 70 1008 338 193 Thermal . | . . . . Explosive . | . . . . Electromagnetic . | . . . . Impact . | . . . . Slashing . | . . . . Piercing . | . . . . Highest Corruption 1 | . 1 1 1 Average Corruption 1 | . 1 1 1 Corruption Purged . | . . . . Corruption Blocked . | . . . . Effects 16 | . 6 10 . Message Errors 1 | . 1 . . Matter Fused 6 | . 3 3 . Heat Flow Errors 4 | . 1 3 . Energy Discharges 2 | . 1 1 . Parts Fused 1 | . . 1 . Data Loss (minor) 1 | . . 1 . Alerts 1 | . . 1 . Overload Shots . | . . . . Overflow Damage . | . . . . Projectiles . | . . . . Explosions . | . . . . Melee . | . . . . Knockbacks . | . . . . Impact . | . . . . Kinetic . | . . . . Secondary . | . . . . Self-Inflicted Damage . | . . . . Shots . | . . . . Rammed . | . . . . Targets Rammed . | . . . . Kicked . | . . . . Crushed . | . . . . Highest Temperature 265 | . 151 265 . Average Temperature 48 | . 28 88 . Received Heat Transfer 420 | . 342 78 . Effects 2 | . . 2 . Interference 2 | . . 2 . Siege Activations . | . . . . Martial Activations . | . . . . Shielding Activations . | . . . . Robots Disrupted . | . . . . Combat Hostiles . | . . . . Robots Corrupted . | . . . . Combat Hostiles . | . . . . Parts Fried . | . . . . Impact Corruptions . | . . . . Robots Melted . | . . . . Combat Hostiles . | . . . . Parts Melted . | . . . . Heat Transferred . | . . . . Parts Sabotaged . | . . . . Parts Stolen . | . . . . Parts Stripped . | . . . . Power Chain Reactions . | . . . . Alert | -11 -10 -10 -10 ------- Run | Yrd Mat Min Sub Maximum Alert Level . | . . . . Low Security (%) 100 | 100 100 100 . Level 1 . | . . . . Level 2 . | . . . . Level 3 . | . . . . Level 4 . | . . . . Level 5 . | . . . . High Security . | . . . . Max Security . | . . . . Peak Influence 150 | 10 150 70 . Initial 25 | . . 25 . Average 40 | . 68 7 . Influence Increases 679 | 10 519 150 . Destroy 0b10 Robot/C 420 | . 320 100 . Destroy 0b10 Robot/NC 55 | 10 30 15 . Destroy Leader 90 | . 70 20 . Successful Hack 37 | . 37 . . Select Force Hacks 60 | . 60 . . Destroy Structure 2 | . 2 . . Lose Combat Pursuer 15 | . . 15 . Influence Decreases 679 | 10 454 215 . Entered New Map 40 | . . 40 . Time Decay 609 | 10 434 165 . Lost Part 30 | . 20 10 . Squads Dispatched 3 | . 3 . . Investigation 3 | . 3 . . Extermination . | . . . . Reinforcement . | . . . . Assault . | . . . . Garrison . | . . . . Intercept . | . . . . Searches Triggered . | . . . . Construction Impeded . | . . . . Haulers Reinforced . | . . . . Active Scanning Responses . | . . . . Cargo Convoy Interrupts . | . . . . Stealth | -11 -10 -10 -10 --------- Run | Yrd Mat Min Sub Distress Signals . | . . . . Communications Jammed . | . . . . Distress Signals . | . . . . Times Spotted 35 | . 27 6 2 Peak Tracking Total 6 | . 6 3 2 Tactical Retreats 3 | . 2 1 . Traps | -11 -10 -10 -10 ------- Run | Yrd Mat Min Sub Traps Triggered 1 | . 1 . . Indirectly . | . . . . Trap Hack Attempts . | . . . . Triggered . | . . . . Disarmed . | . . . . Reprogrammed . | . . . . Reused . | . . . . Traps Extracted . | . . . . Installed . | . . . . Triggered . | . . . . Machines | -11 -10 -10 -10 ---------- Run | Yrd Mat Min Sub Machines Disabled . | . . . . Max in Single Turn . | . . . . Machines Repaired . | . . . . Machines Dismantled . | . . . . Machines Sabotaged . | . . . . Overloaded Fab Kills . | . . . . Hacking | -11 -10 -10 -10 --------- Run | Yrd Mat Min Sub Machines Accessed 10 | . 10 . . Terminals 7 | . 7 . . Fabricators . | . . . . Repair Stations 1 | . 1 . . Recycling Units 2 | . 2 . . Scanalyzers . | . . . . Garrison Access . | . . . . Total Hacks 24 | . 24 . . Successful 12 | . 12 . . Failed 12 | . 12 . . Catastrophic . | . . . . Database Lockouts . | . . . . Manual 12 | . 12 . . Terminals 19 | . 19 . . Fabricators . | . . . . Repair Stations 3 | . 3 . . Recycling Units 2 | . 2 . . Scanalyzers . | . . . . Garrison Access . | . . . . Terminal Hacks 5 | . 5 . . Prototype ID Bank 1 | . 1 . . Surveillance Status 1 | . 1 . . Transport Status 2 | . 2 . . Investigation Status 1 | . 1 . . Fabricator Hacks . | . . . . Repair Station Hacks 2 | . 2 . . Scan Component 1 | . 1 . . Repair 1 | . 1 . . Recycling Unit Hacks . | . . . . Scanalyzer . | . . . . Garrison Access Hacks . | . . . . Unauthorized Hacks 5 | . 5 . . Terminals 3 | . 3 . . Botnet 3 | . 3 . . Fabricators . | . . . . Repair Stations . | . . . . Recycling Units 2 | . 2 . . Tunnel 2 | . 2 . . Scanalyzers . | . . . . Garrison Access . | . . . . Data Cores Recovered . | . . . . Used . | . . . . Hacking Detections 8 | . 8 . . Full Trace Events 1 | . 1 . . Feedback Events . | . . . . Feedback Blocked . | . . . . Robot Schematics Acquired . | . . . . Robots Built . | . . . . Authchips . | . . . . Time . | . . . . Total Robot Build Rating . | . . . . Part Schematics Acquired . | . . . . Parts Built . | . . . . Authchips . | . . . . Time . | . . . . Total Part Build Rating . | . . . . Part Studies Acquired . | . . . . Parts Repaired 1 | . 1 . . Time 13 | . 13 . . Parts Recycled . | . . . . Recycled Matter . | . . . . Retrieved Matter . | . . . . Retrieved Components . | . . . . Parts Scanalyzed . | . . . . Part Schematics Acquired . | . . . . Parts Damaged . | . . . . Bothacking | -11 -10 -10 -10 ------------ Run | Yrd Mat Min Sub Used RIF Installer . | . . . . Robots Hacked . | . . . . Non-combat . | . . . . Combat . | . . . . Robot Hacks Applied . | . . . . Relay Couplers Released . | . . . . Fabnet Peak Effective % . | . . . . Robots Rewired . | . . . . Allies Hacked . | . . . . Hacks Repelled . | . . . . Allies | -11 -10 -10 -10 -------- Run | Yrd Mat Min Sub Total Allies . | . . . . Largest Group . | . . . . Highest-Rated Group . | . . . . Highest-Rated Ally . | . . . . Total Orders . | . . . . Ally Attacks . | . . . . Total Damage . | . . . . Kills . | . . . . Allies Corrupted . | . . . . Allies Melted . | . . . . Intel | -11 -10 -10 -10 ------- Run | Yrd Mat Min Sub Active Infowar (turns) 2552 | 20 1393 1094 45 Seismic 2552 | 20 1393 1094 45 Robot Analysis Total . | . . . . Derelict Logs Recovered 3 | . . 3 . Drone Launches . | . . . . Drone Recoveries . | . . . . Exploration | -11 -10 -10 -10 ------------- Run | Yrd Mat Min Sub Turns Passed 2658 | 113 1406 1094 45 Spaces Moved 1240 | 52 699 481 8 Core 10 | 8 . . 2 Treads 1200 | 44 669 481 6 Legs 30 | . 30 . . Wheels . | . . . . Hover . | . . . . Flight . | . . . . Fastest Speed 50 | 50 160 160 160 Average Speed 160 | 143 161 160 182 Slowest Speed 250 | 160 190 160 250 Overloaded Moves . | . . . . Propulsion Burnouts . | . . . . Robots Hopped . | . . . . Potential Cave-ins . | . . . . Cave-ins Triggered . | . . . . Exploration Rate (%) 49 | 4 96 96 1 Regions Visited 3 Branch Regions 2 Pre-discovered Areas 4 | . 2 2 . Known Exits Taken . | . . . . Unknown Exits Taken 3 | 1 1 1 . Scrap Searched 1 | . . 1 . Spaces Dug 2 | . 2 . . Terrain Destroyed 2 | . 2 . . Melee . | . . . . Projectile 2 | . 2 . . AOE . | . . . . Terrain Rammed . | . . . . Walls Destroyed . | . . . . Machines Disabled . | . . . . Actions | -11 -10 -10 -10 --------- Run | Yrd Mat Min Sub Total 1703 | 77 840 765 21 Wait 280 | . 24 255 1 Move 1237 | 51 698 480 8 Hop . | . . . . Pick Up 18 | 6 11 . 1 Fast Attach 12 | 7 4 1 . Attach . | . . . . Detach . | . . . . Swap 12 | . 12 . . Drop 14 | . 13 . 1 Fire 130 | 13 78 29 10 Melee . | . . . . Ram . | . . . . Kick . | . . . . Crush . | . . . . Escape Stasis . | . . . . Rewire . | . . . . Trap . | . . . . Miscellaneous . | . . . . Route ------- -11/Scrapyard -10/Materials (discovered 4 exits: [*Mat x3] / [*Min]) -10/Mines (discovered 3 exits: [*Mat x2] / [*Sub]) -10/Subcaves History --------- Turn | Location | Event 2 | -11/Scrapyard | Met Revision 17 9 | -11/Scrapyard | Discovered new exit (range 15) 114 | -11/Scrapyard | Entered Materials 305 | -10/Materials | Build established: Mutant 386 | -10/Materials | Repaired Seismic Detector 584 | -10/Materials | Discovered new exit (range 3) 803 | -10/Materials | Discovered new exit (range 16) 935 | -10/Materials | Discovered new exit (range 7) 975 | -10/Materials | Build established: Scavenger-Mutant 980 | -10/Materials | Discovered new exit (range 15) 1114 | -10/Materials | Derelicts attacked the area 1520 | -10/Materials | Entered Mines 1586 | -10/Mines | Core integrity fell below 50% 1642 | -10/Mines | A weapon hastily lodged in a ceiling crevice suddenly fell to the ground 1725 | -10/Mines | Discovered new exit (range 8) 1786 | -10/Mines | Learned location of Zion (-6) 1863 | -10/Mines | Discovered new exit (range 9) 2000 | -10/Mines | Learned 4 Materials zone layouts 2176 | -10/Mines | Discovered new exit (range 9) 2614 | -10/Mines | Entered Subcaves 2615 | -10/Subcaves | Approached by a straggling Scientist 2619 | -10/Subcaves | Shifting Twisted Machinery released Sub. Power Source 2645 | -10/Subcaves | Core integrity fell below 20% 2659 | -10/Subcaves | Destroyed by O2-X4O(R) with Subdweller Machine Gun Last Messages --------------- 02511_ T-07 Excavator is excavating. 02518_ U-05 Engineer lays Concrete. 02586_ System corrupted: IFF burst signal emitted. LOCATION=UNKNOWN AMBIENT_HEAT=-10 GOAL=ESCAPE 02615_ 3F-701(c): "Thank the algorithms! I was beginning to lose hope I'd never make it past all the Subs lurking out here." Sub. Power Source falls loose from the Twisted Machinery. 02619_ 3F-701(c): "Hey, let me tag along and I can get us both out of this nasty situation. At least I think I can... The group I got separated from was talking about a shortcut back to the UFD." 02622_ Dropped Ion Engine. 02622_ Acquired Sub. Power Source. 02628_ Lgt. Nuclear Core destroyed. 02630_ Lgt. Treads destroyed. 02649_ 3F-701(c) destroyed. 02650_ Assault Rifle destroyed. 02653_ XN-XMW(R) destroyed. 02655_ Acquired 52 matter. Map ----- +----------------------------------------------------+ | ?????????????????????????????????????????????????? | | ?????????????????????????????????????????????????? | | ?????????????????????????????????????????????????? | | ?????????????????????????????????????????????????? | | ?????????????????????????????????????????????????? | | ?????????????????????????????????????????????????? | | ?????????????????????????????????????????????????? | | ?????????????????????????????????????????????????? | | ?????????????????????????????????????????????????? | | ?????????????????????????????????????????????????? | | ?????????????????????????????????????????????????? | | ?????????????????????????????????????????????????? | | ?????????????????????????????????????? ?????????? | | ????????????????????????????????????? ??????????? | | ???????????????????????????????????? ???????????? | | ???????????????????????????????????" #???????????? | | ?????????????????????????????????? "#???????????? | | ???????????????????##???????????#" "#???????????? | | ???????????????????# ????????? " """##??????????? | | ???????????????????##R#???????#" #??????????? | | ???????????????????# #??????" ""??????????? | | ???????????????????# #????" ""???????????? | | ?????????????????????# #### ""?????????????? | | ??????????????????????#% # *"""#????????????????? | | ?????????????????????## &%""""##????????????????? | | ?????????????????????# @# # #?????????????????? | | ?????????????????????### #### #?????????????????? | | ???????????????????????##???? #?????????????????? | | ?????????????????????????????""#?????????????????? | | ?????????????????????????????? ?????????????????? | | ?????????????????????????????? ?????????????????? | | ?????????????????????????????? ????????????????? | | ?????????????????????????????? ????????????????? | | ??????????????????????????????? ?????????????????? | | ?????????????????????????????????????????????????? | | ?????????????????????????????????????????????????? | | ?????????????????????????????????????????????????? | | ?????????????????????????????????????????????????? | | ?????????????????????????????????????????????????? | | ?????????????????????????????????????????????????? | | ?????????????????????????????????????????????????? | | ?????????????????????????????????????????????????? | | ?????????????????????????????????????????????????? | | ?????????????????????????????????????????????????? | | ?????????????????????????????????????????????????? | | ?????????????????????????????????????????????????? | | ?????????????????????????????????????????????????? | | ?????????????????????????????????????????????????? | | ?????????????????????????????????????????????????? | | | +----------------------------------------------------+ Best States ------------- Heat Dissipation 25 Energy Generation 14 Energy Capacity 250 Matter Stores 300 Matter Capacity 300 Sight Range 16 Terrain Scan Density 10 Evasion (%) 50 Recoil Reduction 2 Item Schematics ----------------- None Robot Schematics ------------------ None Fabricated ------------ Nothing Repaired ---------- Seismic Detector | 20% | -10/Materials Studied --------- None Alien Tech Used ----------------- None Achievements -------------- None Challenges ------------ None Game ------ Seed TeslaCargoParser Manual? 0 Play Time 00:19:30 Cumulative 127.7 hours Start 2026.08.31 @ 00:50:19 End 2026.08.31 @ 16:51:00 Sessions 2 Manual Loads 0 Difficulty Rogue Special Mode None Game No. 108 Rogue 106 Adventurer 2 Explorer 0 Win Type - Total 0 Types 0/0/0/0/0/0/0/0/0/0 Lore% 57 Gallery% 49 Achievement% 40 Wizard Run 0 Options --------- Layout 0 ASCII 0 Keyboard 0 Movement Mouse Keybinds 0 Fullscreen 2 Font 24/Smallcaps Map View 76x50 Zoom Use 0% Tactical HUD 1 Map Filters NONE Filters NONE Steam 1 RUN: d06d5e45-26a5-4163-bd3e-859245e12014